fUSD/lending_fUSD_20250119
["ID","MTS","AMOUNT","RATE_DAILY","PERIOD"]
[349566629,1737298238906,-500.0,0.00020999,2]
[349566630,1737298238915,-500.0,0.00020999,2]
[349566631,1737298238925,-500.0,0.00020999,2]
[349566632,1737298238936,-500.0,0.00020999,2]
[349566633,1737298238945,-500.0,0.00020999,2]
[349566634,1737298238955,-500.0,0.00020999,2]
[349566635,1737298238965,-500.0,0.00020999,2]
[349566636,1737298238974,-151.57933325,0.00021,2]
[349566637,1737298238984,-93399.78285307,0.00021,2]
[349566638,1737298239130,-1049.05497434,0.00021,2]
[349566639,1737298239149,-496.72623,0.00021,2]
[349566640,1737298239160,-1251.75,0.00021,2]
[349566641,1737298239175,-14007.49621803,0.00021,2]
[349566642,1737298239194,-3360.9,0.00021,2]
[349566643,1737298239206,-50000.0,0.00021,2]
[349566644,1737298239286,-414.72,0.00021,2]
[349566646,1737298239999,-576.1848812,0.00021,2]
[349566647,1737298240012,-4665.43327811,0.00021,2]
[349566648,1737298240054,-5088.26953805,0.00021,2]
[349566649,1737298240065,-807.9,0.00021,2]
[349566650,1737298240076,-1922.01831725,0.00021,2]
[349566651,1737298240107,-500.0,0.00020999,2]
[349566652,1737298240116,-300.31332225,0.00021,2]
[349566653,1737298240127,-2106.4003301,0.00021,2]
[349566654,1737298240161,-1706.794346,0.00021,2]
[349566655,1737298240217,-1576.40772735,0.00021,2]
[349566656,1737298240321,-13384.00849722,0.00021,2]
[349566657,1737298240333,-34696.37300001,0.00021,2]
[349566658,1737298240469,-47447.00629292,0.00021,2]
[349566666,1737298243003,-301.91040128,0.00020819,2]
[349566667,1737298243015,-198.08959872,0.00020819,2]
[349566668,1737298243025,-500.0,0.00020999,2]
[349566669,1737298243034,-1795.51973925,0.00021,2]
[349566670,1737298243045,-9837.67838884,0.00021,2]
[349566671,1737298243060,-13880.54347025,0.00021,2]
[349566672,1737298243071,-121958.75929051,0.00021,2]
[349566673,1737298243111,-925.43211547,0.00021,2]
[349566674,1737298243165,-1774.36611897,0.00021,2]
[349566675,1737298243219,-2890.63507379,0.00021,2]
[349566676,1737298243230,-3196.33005322,0.00021,2]
[349566677,1737298243241,-8143.88149726,0.00021,2]
[349566678,1737298243253,-500.0,0.00021,2]
[349566679,1737298243264,-3158.27562113,0.00021,2]
[349566680,1737298243283,-457.32598,0.00021,2]
[349566700,1737298245847,-353.526063,0.00020999,2]
[349566709,1737298245915,-47.18068514,0.00020999,2]
[349566711,1737298245929,-112.95325186,0.00020999,2]
[349566713,1737298245940,-3278.22546035,0.00021,2]
[349566715,1737298245951,-755.60676301,0.00021,2]
[349566717,1737298245962,-27785.79667834,0.00021,2]
[349566718,1737298245974,-43067.63479191,0.00021,2]
[349566719,1737298245985,-56836.15699044,0.00021,2]
[349566720,1737298245994,-245.40325262,0.00021,2]
[349566721,1737298246003,-7536.7232543,0.00021,15]
[349566722,1737298246014,-13191.61799893,0.00021,15]
[349566723,1737298246024,-445.419,0.00021,15]
[349566724,1737298246036,-5364.2,0.00021,15]
[349566725,1737298246049,-3284.46134245,0.00021,15]
[349566726,1737298246067,-556.52197439,0.00021,15]
[349566727,1737298246078,-2729.56508945,0.00021,15]
[349566728,1737298246089,-1325.95192759,0.00021,15]
[349566729,1737298246099,-7919.53467144,0.00021,15]
[349566730,1737298246110,-164424.11107176,0.00021,15]
[349566731,1737298246123,-4508.5399997,0.00021,15]
[349566732,1737298246139,-25442.20032703,0.00021,15]
[349566733,1737298246700,-263.258183,0.00020999,2]
[349566734,1737298246710,-2733.36047481,0.00021,15]
[349566735,1737298246721,-2746.31687012,0.00021,15]
[349566736,1737298246733,-8182.2171431,0.00021,15]
[349566737,1737298254675,10306.24371495,0.000125,2]
[349566741,1737298724968,171.95,0.00010137,2]
[349566743,1737298934011,-2000.0,0.00022189,120]
[349566744,1737298934039,-965.32304825,0.00022325,120]
[349566748,1737298994966,2000.0,0.00022189,120]
[349566749,1737299123167,3281.79,0.00021917,120]
[349566750,1737299123449,3281.79,0.00021917,120]
[349566751,1737299123714,3281.79,0.00021917,120]
[349566752,1737299123999,3281.79,0.00021917,120]
[349566753,1737299124250,3281.79,0.00021917,120]
[349566754,1737299124883,3281.79,0.00021917,120]
[349566755,1737299125150,3281.79,0.00021917,120]
[349566756,1737299125412,3281.79,0.00021917,120]
[349566757,1737299125692,3281.79,0.00021917,120]
[349566758,1737299125976,3281.79,0.00021917,120]
[349566759,1737299126228,3281.79,0.00021917,120]
[349566760,1737299126503,3281.79,0.00021917,120]
[349566761,1737299126759,3281.79,0.00021917,120]
[349566762,1737299127017,3281.79,0.00021917,120]
[349566763,1737299127289,3281.79,0.00021917,120]
[349566764,1737299127557,3281.79,0.00021917,120]
[349566765,1737299127826,3281.79,0.00021917,120]
[349566766,1737299128074,3281.79,0.00021917,120]
[349566767,1737299128322,3281.79,0.00021917,120]
[349566768,1737299128577,3281.79,0.00021917,120]
[349566769,1737299128858,3281.79,0.00021917,120]
[349566770,1737299129137,3281.79,0.00021917,120]
[349566771,1737299129418,3281.79,0.00021917,120]
[349566772,1737299129691,3281.81838024,0.00021917,120]
[349566773,1737299159140,-550.0,0.00015,2]
[349566774,1737299159161,-600.0,0.00017,2]
[349566775,1737299159181,-598.58,0.00018481,2]
[349566776,1737299159201,-45.05918232,0.00019,2]
[349566777,1737299244098,-404.48092,0.00018905,2]
[349566778,1737299244120,-79.91694035,0.00019,2]
[349566811,1737299432255,-525.02387733,0.00019,2]
[349566812,1737299432265,-307.98621702,0.00019404,2]
[349566813,1737299432276,-307.98621702,0.00019428,2]
[349566814,1737299432286,-307.98621702,0.00019448,2]
[349566815,1737299432296,-307.98621702,0.00019489,2]
[349566816,1737299432306,-307.98621702,0.00019489,2]
[349566817,1737299432316,-1395.65416147,0.00019563,2]
[349566818,1737299432326,-958.08,0.00019663,2]
[349566819,1737299432336,-1000.0,0.0001973,2]
[349566820,1737299432346,-3213.72,0.00019734,2]
[349566821,1737299432356,-300.0,0.00019796,2]
[349566822,1737299432366,-633.10248452,0.00019797,2]
[349566823,1737299432376,-728.89252674,0.00019797,2]
[349566824,1737299432386,-167.17052322,0.00019797,2]
[349566825,1737299432397,-361.88,0.000198,2]
[349566826,1737299432407,-5207.47976364,0.000198,7]
[349566827,1737299432424,-1047.3,0.000198,7]
[349566828,1737299432435,-315.56130515,0.000198,7]
[349566829,1737299432447,-5160.7727,0.000198,7]
[349566830,1737299432460,-473.93125046,0.000198,7]
[349566831,1737299432475,-250.0,0.00019825,2]
[349566832,1737299432485,-193.55931365,0.0001987,2]
[349566833,1737299432496,-1661.27903289,0.0001988,2]
[349566834,1737299432509,-99072.40780001,0.0001988,2]
[349566835,1737299432521,-26345.62066399,0.0001988,2]
[349566836,1737299432534,-4014.45255788,0.0001988,2]
[349566837,1737299432547,-12032.27930257,0.0001988,2]
[349566838,1737299432559,-2842.40743366,0.0001988,2]
[349566839,1737299432572,-949.83135,0.0001988,2]
[349566840,1737299432617,-365.41440012,0.0001988,2]
[349566841,1737299432629,-449.00374955,0.0001988,2]
[349566842,1737299432641,-2021.16,0.0001988,2]
[349566843,1737299432654,-267.63179609,0.0001988,2]
[349566844,1737299432667,-1705.8,0.0001988,2]
[349566845,1737299432889,-5132.73448587,0.0001988,2]
[349566848,1737299432906,-9150.58410519,0.0001988,2]
[349566851,1737299432922,-73569.35820576,0.0001988,2]
[349566853,1737299432933,-51029.4229653,0.0001988,2]
[349566855,1737299432942,-1581.83823521,0.0001988,2]
[349567277,1737299438032,-12928.25242072,0.0001988,2]
[349567278,1737299438043,-22304.9967933,0.0001988,2]
[349567279,1737299438086,-5547.74016914,0.0001988,2]
[349567280,1737299438098,-2420.14254289,0.0001988,2]
[349567281,1737299438110,-393.69097478,0.0001988,2]
[349567282,1737299438300,-29407.5824961,0.0001988,2]
[349567283,1737299438313,-46196.74758099,0.0001988,2]
[349567284,1737299438324,-7242.08946969,0.0001988,2]
[349567285,1737299438336,-13577.74495337,0.0001988,2]
[349567286,1737299438347,-14285.57803073,0.0001988,2]
[349567287,1737299438359,-539.8179,0.0001988,2]
[349567288,1737299438371,-1669.89751931,0.0001988,2]
[349567289,1737299438386,-663.34876974,0.0001988,2]
[349567326,1737299440484,-51991.53483128,0.0001988,2]
[349567327,1737299440941,-693.94102824,0.0001988,2]
[349567343,1737299443149,-384.8,0.0001988,2]
[349567350,1737299443203,-26265.0,0.0001988,2]
[349567357,1737299443259,-13940.56432894,0.0001988,2]
[349567374,1737299443418,-683.90000001,0.0001988,2]
[349567381,1737299443482,-324.686543,0.0001988,2]
[349567387,1737299443532,-5413.0,0.0001988,2]
[349567389,1737299443543,-2452.6296492,0.0001988,2]
[349567421,1737299446069,-63392.31665015,0.0001988,2]
[349567424,1737299446083,-96175.38503362,0.0001988,2]
[349567429,1737299446123,-1698.15,0.0001988,2]
[349567430,1737299446179,-3464.37080649,0.0001988,2]
[349567431,1737299446190,-368.03809373,0.0001988,2]
[349567432,1737299446202,-1210.60637113,0.0001988,2]
[349567433,1737299446287,-1032.7469456,0.0001988,2]
[349567434,1737299446343,-3884.40202755,0.0001988,2]
[349567435,1737299446397,-3371.59999902,0.0001988,2]
[349567436,1737299446539,-87445.94302729,0.0001988,2]
[349567437,1737299446584,-1640.74558,0.0001988,2]
[349567438,1737299446596,-2668.8,0.0001988,2]
[349567440,1737299594403,1689.660444,0.00022214,120]
[349567441,1737299678574,150.0,0.000125,2]
[349567442,1737299736717,1441.64844046,0.00023,120]
[349567447,1737300152881,5552.77,0.00019105,30]
[349567448,1737300308357,201054.22100831,0.00012,2]
[349567449,1737300359141,-1092.13398632,0.00012,2]
[349567450,1737300413085,-260.94003145,0.00012,2]
[349567454,1737300546098,-300.0,0.00011999,2]
[349567455,1737300546120,-44137.04552,0.00012,2]
[349567456,1737300546152,-140655.7544,0.00012,2]
[349567457,1737300552131,-56267.34974,0.00012,2]
[349567458,1737300561099,-1472.059361,0.00012,2]
[349567459,1737300561123,-219.26372518,0.00013,2]
[349567460,1737300561322,-573.32806682,0.00013,2]
[349567461,1737300561347,-420.0,0.00013172,2]
[349567462,1737300561368,-378.18193318,0.00014,2]
[349567463,1737300561390,-507.26391584,0.00014,2]
[349567464,1737300561411,-434.0,0.0001446,2]
[349567465,1737300561431,-321.76170632,0.000158,2]
[349567466,1737300564100,-247.71239848,0.000158,2]
[349567467,1737300564121,-225.40723956,0.000159,2]
[349567468,1737300564142,-489.0,0.00016,2]
[349567469,1737300564162,-583.20316196,0.00016766,2]
[349567482,1737300632344,-45.63683804,0.00016766,2]
[349567483,1737300632353,-2724.15499809,0.00017836,2]
[349567484,1737300632364,-2066.0,0.00017836,2]
[349567485,1737300632405,-2076.5806506,0.00017836,2]
[349567486,1737300632461,-276.0,0.00017836,2]
[349567487,1737300632472,-5036.63307204,0.00017836,2]
[349567488,1737300632531,-5972.87439219,0.00017836,2]
[349567489,1737300632577,-848.232,0.00017836,2]
[349567490,1737300632636,-2834.52488708,0.00017836,2]
[349567491,1737300632647,-250.0,0.0001861,2]
[349567492,1737300632656,-200.0,0.00018658,2]
[349567493,1737300632666,-171.49,0.00018684,2]
[349567494,1737300632675,-1000.0,0.00018721,2]
[349567495,1737300632684,-656.412,0.00018739,2]
[349567496,1737300632693,-158.377,0.00018739,2]
[349567497,1737300632702,-387.83,0.000189,2]
[349567498,1737300632712,-250.0,0.00018917,2]
[349567499,1737300632721,-233.03,0.00018937,2]
[349567500,1737300632731,-247.67,0.00018991,2]
[349567501,1737300632740,-628.84,0.0001903,2]
[349567502,1737300632750,-500.0,0.00019178,2]
[349567503,1737300632759,-500.0,0.00019178,2]
[349567504,1737300632769,-500.0,0.00019178,2]
[349567505,1737300632778,-500.0,0.00019178,2]
[349567506,1737300632788,-2445.03,0.00019178,2]
[349567507,1737300632797,-500.0,0.00019178,2]
[349567508,1737300632807,-845.48,0.00019178,2]
[349567509,1737300632816,-500.0,0.00019178,2]
[349567510,1737300632825,-500.0,0.00019178,2]
[349567511,1737300632834,-684.2,0.00019178,2]
[349567512,1737300632843,-821.07,0.00019178,2]
[349567513,1737300632853,-500.0,0.00019178,2]
[349567514,1737300632862,-500.0,0.00019178,2]
[349567515,1737300632872,-823.01,0.00019178,2]
[349567516,1737300632881,-500.0,0.00019178,2]
[349567517,1737300632891,-1670.51,0.00019178,2]
[349567518,1737300632902,-653.18,0.00019178,2]
[349567519,1737300632911,-500.0,0.00019178,2]
[349567520,1737300632920,-500.0,0.00019178,2]
[349567521,1737300632930,-500.0,0.00019178,2]
[349567522,1737300632939,-1433.38,0.00019178,2]
[349567523,1737300632948,-500.0,0.00019178,2]
[349567524,1737300632957,-500.0,0.00019178,2]
[349567525,1737300632967,-785.93,0.00019178,2]
[349567526,1737300632977,-500.0,0.00019178,2]
[349567527,1737300632986,-1295.61,0.00019178,2]
[349567528,1737300632995,-600.04,0.00019178,2]
[349567529,1737300633005,-500.0,0.00019178,2]
[349567530,1737300633014,-22.17690135,0.00019178,2]
[349567531,1737300633026,-480.37964234,0.00019178,2]
[349567532,1737300633036,-500.0,0.00019178,2]
[349567533,1737300633046,-500.0,0.00019178,2]
[349567534,1737300633056,-500.0,0.00019178,2]
[349567535,1737300633067,-1292.2,0.00019178,2]
[349567536,1737300633076,-500.0,0.00019178,2]
[349567537,1737300633086,-500.0,0.00019178,2]
[349567538,1737300633095,-500.0,0.00019178,2]
[349567539,1737300633106,-500.0,0.00019178,2]
[349567540,1737300633115,-500.0,0.00019178,2]
[349567541,1737300633125,-240.57,0.0001933,2]
[349567542,1737300633135,-190.46,0.0001933,2]
[349567543,1737300633144,-274.229378,0.00019371,2]
[349567544,1737300633155,-200.0,0.00019375,2]
[349567545,1737300633164,-274.229378,0.00019382,2]
[349567546,1737300633174,-274.229378,0.00019391,2]
[349567547,1737300633183,-200.0,0.00019427,2]
[349567548,1737300633192,-500.0,0.00019452,2]
[349567549,1737300633202,-500.0,0.00019452,2]
[349567550,1737300633211,-467.78,0.00019452,2]
[349567551,1737300633223,-500.0,0.00019452,2]
[349567552,1737300633232,-2445.03,0.00019452,2]
[349567553,1737300633242,-500.0,0.00019452,2]
[349567554,1737300633251,-845.48,0.00019452,2]
[349567555,1737300633260,-500.0,0.00019452,2]
[349567556,1737300633270,-684.2,0.00019452,2]
[349567557,1737300633279,-821.07,0.00019452,2]
[349567558,1737300633289,-500.0,0.00019452,2]
[349567559,1737300633299,-500.0,0.00019452,2]
[349567560,1737300633308,-823.01,0.00019452,2]
[349567561,1737300633317,-500.0,0.00019452,2]
[349567562,1737300633327,-1670.51,0.00019452,2]
[349567563,1737300633337,-653.18,0.00019452,2]
[349567564,1737300633346,-500.0,0.00019452,2]
[349567565,1737300633356,-500.0,0.00019452,2]
[349567566,1737300633365,-500.0,0.00019452,2]
[349567567,1737300633375,-1433.38,0.00019452,2]
[349567569,1737300633385,-500.0,0.00019452,2]
[349567570,1737300633394,-785.93,0.00019452,2]
[349567571,1737300633406,-500.0,0.00019452,2]
[349567572,1737300633416,-1295.61,0.00019452,2]
[349567573,1737300633425,-600.04,0.00019452,2]
[349567574,1737300633435,-500.0,0.00019452,2]
[349567575,1737300633444,-500.0,0.00019452,2]
[349567576,1737300633454,-500.0,0.00019452,2]
[349567577,1737300633464,-1292.2,0.00019452,2]
[349567578,1737300633474,-500.0,0.00019452,2]
[349567579,1737300633483,-500.0,0.00019452,2]
[349567580,1737300633492,-500.0,0.00019452,2]
[349567581,1737300633502,-185.5168,0.00019452,2]
[349567582,1737300633511,-274.229378,0.00019498,2]
[349567583,1737300633521,-274.229378,0.00019499,2]
[349567584,1737300633530,-325.7,0.000195,2]
[349567585,1737300633539,-200.0,0.000195,7]
[349567586,1737300633549,-23900.0,0.00019507,2]
[349567587,1737300633559,-250.0,0.00019582,2]
[349567588,1737300633764,-387.83,0.00019599,2]
[349567589,1737300633775,-500.0,0.000196,7]
[349567590,1737300633785,-700.0,0.000197,7]
[349567591,1737300633794,-165.9741326,0.000197,2]
[349567592,1737300633804,-500.0,0.00019726,2]
[349567593,1737300633814,-500.0,0.00019726,2]
[349567594,1737300633824,-500.0,0.00019726,2]
[349567595,1737300633834,-2445.03,0.00019726,2]
[349567596,1737300633844,-500.0,0.00019726,2]
[349567597,1737300633855,-845.48,0.00019726,2]
[349567598,1737300633864,-500.0,0.00019726,2]
[349567599,1737300633874,-684.2,0.00019726,2]
[349567600,1737300633884,-821.07,0.00019726,2]
[349567601,1737300633894,-500.0,0.00019726,2]
[349567602,1737300633905,-500.0,0.00019726,2]
[349567603,1737300633915,-823.01,0.00019726,2]
[349567604,1737300633924,-500.0,0.00019726,2]
[349567605,1737300633935,-462.79274558,0.00019726,2]
[349567609,1737300633949,-1207.71725442,0.00019726,2]
[349567612,1737300633959,-653.18,0.00019726,2]
[349567615,1737300633969,-500.0,0.00019726,2]
[349567618,1737300633979,-500.0,0.00019726,2]
[349567620,1737300633989,-500.0,0.00019726,2]
[349567622,1737300633998,-1433.38,0.00019726,2]
[349567624,1737300634008,-500.0,0.00019726,2]
[349567626,1737300634018,-785.93,0.00019726,2]
[349567628,1737300634028,-500.0,0.00019726,2]
[349567631,1737300634037,-1295.61,0.00019726,2]
[349567634,1737300634052,-600.04,0.00019726,2]
[349567637,1737300634066,-500.0,0.00019726,2]
[349567640,1737300634077,-500.0,0.00019726,2]
[349567642,1737300634088,-1292.2,0.00019726,2]
[349567644,1737300634097,-500.0,0.00019726,2]
[349567646,1737300634107,-376.78883641,0.00019726,2]
[349567648,1737300634118,-500.0,0.00019726,2]
[349567650,1737300634127,-163.80260535,0.00019778,2]
[349567652,1737300634138,-310.0704,0.00019778,2]
[349567654,1737300634148,-5000.0,0.00019779,2]
[349567656,1737300634160,-220.0,0.00019779,2]
[349567658,1737300634170,-2033.7,0.0001978,2]
[349567660,1737300634181,-2219.3902,0.0001978,2]
[349567662,1737300634191,-15880.5788,0.0001978,2]
[349567665,1737300634203,-2595.7752,0.0001978,2]
[349567667,1737300634215,-14024.3888,0.0001978,2]
[349567669,1737300634225,-1000.0,0.000198,7]
[349567671,1737300634235,-568.70898908,0.00019827,2]
[349567673,1737300634245,-193.55931365,0.0001987,2]
[349567675,1737300634255,-165.97413259,0.00019871,2]
[349567677,1737300634265,-500.0,0.00019873,2]
[349567679,1737300634275,-1655.35279773,0.00019878,2]
[349567681,1737300634284,-167.347148,0.00019878,2]
[349567683,1737300634295,-500.0,0.00019878,2]
[349567685,1737300634305,-500.0,0.00019878,2]
[349567687,1737300634314,-500.0,0.00019878,2]
[349567689,1737300634324,-500.0,0.00019878,2]
[349567691,1737300634333,-540.08,0.00019878,2]
[349567694,1737300634357,-318.925828,0.00019878,2]
[349567696,1737300634367,-524.85,0.00019878,2]
[349567698,1737300634378,-500.0,0.00019878,2]
[349567700,1737300634388,-892.42,0.00019878,2]
[349567702,1737300634402,-806.6,0.00019878,2]
[349567704,1737300634411,-769.63,0.00019878,2]
[349567706,1737300634422,-500.0,0.00019878,2]
[349567708,1737300634432,-500.0,0.00019878,2]
[349567710,1737300634442,-951.25,0.00019878,2]
[349567712,1737300634453,-753.52,0.00019878,2]
[349567714,1737300634463,-500.0,0.00019878,2]
[349567716,1737300634473,-500.0,0.00019878,2]
[349567718,1737300634483,-500.0,0.00019878,2]
[349567720,1737300634493,-997.76,0.00019878,2]
[349567722,1737300634503,-1039.34,0.00019878,2]
[349567724,1737300634512,-653.13,0.00019878,2]
[349567726,1737300634522,-27.28974477,0.00019878,2]
[349567728,1737300634535,-2241.62025523,0.00019878,2]
[349567730,1737300634544,-500.0,0.00019878,2]
[349567732,1737300634554,-1948.86,0.00019878,2]
[349567734,1737300634563,-500.0,0.00019878,2]
[349567736,1737300634573,-500.0,0.00019878,2]
[349567738,1737300634583,-500.0,0.00019878,2]
[349567740,1737300634593,-500.0,0.00019878,2]
[349567742,1737300634602,-507.87,0.00019878,2]
[349567744,1737300634612,-500.0,0.00019878,2]
[349567746,1737300634621,-2836.05,0.00019878,2]
[349567748,1737300634631,-500.0,0.00019878,2]
[349567751,1737300634641,-954.2,0.00019878,2]
[349567752,1737300634654,-555.31,0.00019878,2]
[349567755,1737300634663,-500.0,0.00019878,2]
[349567756,1737300634672,-636.51,0.00019878,2]
[349567759,1737300634682,-500.0,0.00019879,2]
[349567761,1737300634691,-500.0,0.00019879,2]
[349567763,1737300634701,-500.0,0.00019879,2]
[349567765,1737300634710,-485.70146739,0.00019879,2]
[349567767,1737300634721,-14.29853261,0.00019879,2]
[349567769,1737300634731,-500.0,0.00019879,2]
[349567771,1737300634740,-500.0,0.00019879,2]
[349567773,1737300634749,-500.0,0.00019879,2]
[349567775,1737300634758,-500.0,0.00019879,2]
[349567777,1737300634767,-500.0,0.00019879,2]
[349567779,1737300634776,-500.0,0.00019879,2]
[349567781,1737300634786,-500.0,0.00019879,2]
[349567783,1737300634795,-500.0,0.00019879,2]
[349567785,1737300634805,-500.0,0.00019879,2]
[349567787,1737300634816,-500.0,0.00019879,2]
[349567789,1737300634825,-500.0,0.00019879,2]
[349567791,1737300634835,-500.0,0.00019879,2]
[349567793,1737300634844,-171.0045855,0.00019879,2]
[349567794,1737300634854,-500.0,0.00019879,2]
[349567796,1737300634864,-500.0,0.00019879,2]
[349567798,1737300634873,-500.0,0.00019879,2]
[349567799,1737300634883,-500.0,0.00019879,2]
[349567801,1737300634892,-160.60321796,0.00019879,2]
[349567803,1737300634905,-500.0,0.00019879,2]
[349567805,1737300634915,-500.0,0.00019879,2]
[349567806,1737300634924,-500.0,0.00019879,2]
[349567808,1737300634934,-500.0,0.00019879,2]
[349567810,1737300634944,-500.0,0.00019879,2]
[349567812,1737300634954,-500.0,0.00019879,2]
[349567814,1737300634964,-500.0,0.00019879,2]
[349567815,1737300634973,-500.0,0.00019879,2]
[349567817,1737300634983,-500.0,0.00019879,2]
[349567819,1737300634992,-289.53006669,0.00019879,2]
[349567820,1737300635002,-500.0,0.00019879,2]
[349567822,1737300635012,-500.0,0.00019879,2]
[349567824,1737300635021,-500.0,0.00019879,2]
[349567826,1737300635031,-500.0,0.00019879,2]
[349567827,1737300635041,-500.0,0.00019879,2]
[349567829,1737300635051,-300.30596388,0.00019879,2]
[349568136,1737300638313,-500.0,0.00019178,2]
[349568138,1737300638323,-500.0,0.00019178,2]
[349568140,1737300638333,-500.0,0.00019178,2]
[349568142,1737300638342,-500.0,0.00019178,2]
[349568144,1737300638352,-500.0,0.00019178,2]
[349568146,1737300638362,-500.0,0.00019178,2]
[349568148,1737300638371,-168.68,0.00019339,2]
[349568150,1737300638381,-146.0511007,0.00019452,2]
[349568183,1737300638808,-353.9488993,0.00019452,2]
[349568185,1737300638818,-500.0,0.00019452,2]
[349568187,1737300638827,-500.0,0.00019452,2]
[349568189,1737300638837,-500.0,0.00019452,2]
[349568191,1737300638847,-500.0,0.00019452,2]
[349568193,1737300638857,-500.0,0.00019452,2]
[349568195,1737300638866,-185.63,0.00019726,2]
[349568197,1737300638876,-500.0,0.00019726,2]
[349568199,1737300638885,-500.0,0.00019726,2]
[349568201,1737300638895,-500.0,0.00019726,2]
[349568203,1737300638906,-500.0,0.00019726,2]
[349568205,1737300638916,-500.0,0.00019726,2]
[349568207,1737300638925,-500.0,0.00019878,2]
[349568209,1737300638934,-200.44632802,0.00019879,2]
[349568211,1737300638944,-499.97477265,0.00019879,2]
[349568232,1737300639149,-0.02522735,0.00019879,2]
[349568234,1737300639161,-500.0,0.00019879,2]
[349568236,1737300639170,-500.0,0.00019879,2]
[349568238,1737300639179,-500.0,0.00019879,2]
[349568240,1737300639189,-500.0,0.00019879,2]
[349568242,1737300639198,-500.0,0.00019879,2]
[349568244,1737300639209,-500.0,0.00019879,2]
[349568246,1737300639222,-500.0,0.00019879,2]
[349568248,1737300639231,-500.0,0.00019879,2]
[349568250,1737300639241,-500.0,0.00019879,2]
[349568252,1737300639251,-500.0,0.00019879,2]
[349568254,1737300639261,-500.0,0.00019879,2]
[349568256,1737300639271,-500.0,0.00019879,2]
[349568258,1737300639282,-500.0,0.00019879,2]
[349568260,1737300639292,-500.0,0.00019879,2]
[349568262,1737300639301,-328.65951686,0.00019879,2]
[349568264,1737300639313,-171.34048314,0.00019879,2]
[349568266,1737300639323,-500.0,0.00019879,2]
[349568268,1737300639333,-500.0,0.00019879,2]
[349568270,1737300639342,-500.0,0.00019879,2]
[349568272,1737300639351,-500.0,0.00019879,2]
[349568274,1737300639360,-500.0,0.00019879,2]
[349568276,1737300639370,-500.0,0.00019879,2]
[349568278,1737300639379,-500.0,0.00019879,2]
[349568280,1737300639387,-500.0,0.00019879,2]
[349568282,1737300639396,-500.0,0.00019879,2]
[349568283,1737300639407,-500.0,0.00019879,2]
[349568285,1737300639416,-500.0,0.00019879,2]
[349568287,1737300639426,-500.0,0.00019879,2]
[349568290,1737300639435,-500.0,0.00019879,2]
[349568292,1737300639444,-500.0,0.00019879,2]
[349568294,1737300639453,-458.31530397,0.00019879,2]
[349568295,1737300639463,-291.02739827,0.00019879,2]
[349568298,1737300639471,-500.0,0.00019879,2]
[349568300,1737300639481,-500.0,0.00019879,2]
[349568301,1737300639490,-500.0,0.00019879,2]
[349568304,1737300639500,-500.0,0.00019879,2]
[349568305,1737300639509,-500.0,0.00019879,2]
[349568307,1737300639519,-500.0,0.00019879,2]
[349568309,1737300639528,-500.0,0.00019879,2]
[349568311,1737300639538,-500.0,0.00019879,2]
[349568313,1737300639547,-500.0,0.00019879,2]
[349568315,1737300639558,-500.0,0.00019879,2]
[349568317,1737300639567,-500.0,0.00019879,2]
[349568319,1737300639577,-500.0,0.00019879,2]